Workbook

Sheet Juhend
B2: ISIKLIK RAHAVOOG
B3: Selles töövihikus on aasta, kuu ja päeva töölehed. Isiklikest rahavoogudest ülevaate saamiseks valige sobiv rahavoo tüüp või kasutage neid kõiki.
B5: Päeva rahavoog | E5: Kuu rahavoog | H5: Aasta rahavoog
B7: Sisestage igapäevane prognoositav rahavoosumma ja vaadake läbi prognoositavad igakuised ja -aastased kogusummad. Selle abil saate ülevaate oma päeva kulutamisharjumustest kuu või aasta lõikes. | E7: Sisestage igakuine rahavoog või hinnake järelejäänud kuid, et näha aasta prognoositud rahavoogu iga kuu kohta. | H7: Sisestage aasta rahavoo summa neljale töölehele: Sissetulekud, kulud, valikulised kulud ja säästud. Saate vaadata kuujaotust ja eri valdkondade võrdlust ning mis kõige tähtsam, üldseisu aasta ja kuu lõikes.

Sheet Päeva rahavoog
B1: ISIKLIK RAHAVOOG
C2: Kogu vaba raha: | D2: =PäevaRahavoog -> 577.84 € | F2: MÄRKUS: Kui soovite tabelisse lisada igapäevaseid üksusi, hinnake nende kuuväärtust ja paigutage need sobivasse kuuveergu.
B4: PÄEVAKOKKUVÕTE
B5: Kogusummad | C5: Igapäevane | D5: Igakuine | E5: Aastane
B6: Sissetulek | C6: =SUMIF(Igapäevane[Tüüp],$B6,Igapäevane[Igapäevane]) -> 342.47 € | D6: =SUMIF(Igapäevane[Tüüp],$B6,Igapäevane[Igakuine]) -> 10,416.80 € | E6: =SUMIF(Igapäevane[Tüüp],$B6,Igapäevane[Aastane]) -> 125,001.55 €
B7: Kulud | C7: =SUMIF(Igapäevane[Tüüp],$B7,Igapäevane[Igapäevane]) -> 136.06 € | D7: =SUMIF(Igapäevane[Tüüp],$B7,Igapäevane[Igakuine]) -> 4,138.49 € | E7: =SUMIF(Igapäevane[Tüüp],$B7,Igapäevane[Aastane]) -> 49,661.90 €
B8: Valikulised | C8: =SUMIF(Igapäevane[Tüüp],$B8,Igapäevane[Igapäevane]) -> 36.29 € | D8: =SUMIF(Igapäevane[Tüüp],$B8,Igapäevane[Igakuine]) -> 1,103.82 € | E8: =SUMIF(Igapäevane[Tüüp],$B8,Igapäevane[Aastane]) -> 13,245.85 €
B9: Säästud | C9: =SUMIF(Igapäevane[Tüüp],$B9,Igapäevane[Igapäevane]) -> 63.02 € | D9: =SUMIF(Igapäevane[Tüüp],$B9,Igapäevane[Igakuine]) -> 1,916.86 € | E9: =SUMIF(Igapäevane[Tüüp],$B9,Igapäevane[Aastane]) -> 23,002.30 €
B11: Tüüp | C11: Kirjeldus | D11: Igapäevane | E11: Igakuine | F11: Aastane
B12: Sissetulek | C12: Palk | D12: 246.58 € | E12: =Igapäevane[[#This Row],[Aastane]]/12 -> 7,500.14 € | F12: =Igapäevane[[#This Row],[Igapäevane]]*365 -> 90,001.70 €
B13: Sissetulek | C13: Komisjonitasud/boonus | D13: 13.70 € | E13: =Igapäevane[[#This Row],[Aastane]]/12 -> 416.71 € | F13: =Igapäevane[[#This Row],[Igapäevane]]*365 -> 5,000.50 €
B14: Sissetulek | C14: Muu 1 | D14: 82.19 € | E14: =Igapäevane[[#This Row],[Aastane]]/12 -> 2,499.95 € | F14: =Igapäevane[[#This Row],[Igapäevane]]*365 -> 29,999.35 €
B15: Sissetulek | C15: Muu 2 | D15: 0.00 € | E15: =Igapäevane[[#This Row],[Aastane]]/12 -> 0.00 € | F15: =Igapäevane[[#This Row],[Igapäevane]]*365 -> 0.00 €
B16: Sissetulek | C16: Muu 3 | D16: 0.00 € | E16: =Igapäevane[[#This Row],[Aastane]]/12 -> 0.00 € | F16: =Igapäevane[[#This Row],[Igapäevane]]*365 -> 0.00 €
B17: Sissetulek | C17: Muu 4 | D17: 0.00 € | E17: =Igapäevane[[#This Row],[Aastane]]/12 -> 0.00 € | F17: =Igapäevane[[#This Row],[Igapäevane]]*365 -> 0.00 €
B18: Kulud | C18: Sotsiaalmaksud | D18: 41.10 € | E18: =Igapäevane[[#This Row],[Aastane]]/12 -> 1,250.13 € | F18: =Igapäevane[[#This Row],[Igapäevane]]*365 -> 15,001.50 €
B19: Kulud | C19: Tulumaks | D19: 6.85 € | E19: =Igapäevane[[#This Row],[Aastane]]/12 -> 208.35 € | F19: =Igapäevane[[#This Row],[Igapäevane]]*365 -> 2,500.25 €
B20: Kulud | C20: Sõidukitasud | D20: 0.55 € | E20: =Igapäevane[[#This Row],[Aastane]]/12 -> 16.73 € | F20: =Igapäevane[[#This Row],[Igapäevane]]*365 -> 200.75 €
B21: Kulud | C21: Sõidukimaksed | D21: 10.96 € | E21: =Igapäevane[[#This Row],[Aastane]]/12 -> 333.37 € | F21: =Igapäevane[[#This Row],[Igapäevane]]*365 -> 4,000.40 €
B22: Kulud | C22: Hüpoteek/üür | D22: 41.10 € | E22: =Igapäevane[[#This Row],[Aastane]]/12 -> 1,250.13 € | F22: =Igapäevane[[#This Row],[Igapäevane]]*365 -> 15,001.50 €
B23: Kulud | C23: Kindlustus | D23: 0.68 € | E23: =Igapäevane[[#This Row],[Aastane]]/12 -> 20.68 € | F23: =Igapäevane[[#This Row],[Igapäevane]]*365 -> 248.20 €
B24: Kulud | C24: Elekter | D24: 3.29 € | E24: =Igapäevane[[#This Row],[Aastane]]/12 -> 100.07 € | F24: =Igapäevane[[#This Row],[Igapäevane]]*365 -> 1,200.85 €
B25: Kulud | C25: Gaas | D25: 1.64 € | E25: =Igapäevane[[#This Row],[Aastane]]/12 -> 49.88 € | F25: =Igapäevane[[#This Row],[Igapäevane]]*365 -> 598.60 €
B26: Kulud | C26: Vesi | D26: 1.64 € | E26: =Igapäevane[[#This Row],[Aastane]]/12 -> 49.88 € | F26: =Igapäevane[[#This Row],[Igapäevane]]*365 -> 598.60 €
B27: Kulud | C27: Kanalisatsioon | D27: 0.82 € | E27: =Igapäevane[[#This Row],[Aastane]]/12 -> 24.94 € | F27: =Igapäevane[[#This Row],[Igapäevane]]*365 -> 299.30 €
B28: Kulud | C28: Prügivedu | D28: 0.41 € | E28: =Igapäevane[[#This Row],[Aastane]]/12 -> 12.47 € | F28: =Igapäevane[[#This Row],[Igapäevane]]*365 -> 149.65 €
B29: Kulud | C29: Telefon | D29: 1.64 € | E29: =Igapäevane[[#This Row],[Aastane]]/12 -> 49.88 € | F29: =Igapäevane[[#This Row],[Igapäevane]]*365 -> 598.60 €
B30: Kulud | C30: Internet | D30: 1.64 € | E30: =Igapäevane[[#This Row],[Aastane]]/12 -> 49.88 € | F30: =Igapäevane[[#This Row],[Igapäevane]]*365 -> 598.60 €
B31: Kulud | C31: Tervisekahjustuse kindlustus | D31: 4.11 € | E31: =Igapäevane[[#This Row],[Aastane]]/12 -> 125.01 € | F31: =Igapäevane[[#This Row],[Igapäevane]]*365 -> 1,500.15 €
B32: Kulud | C32: Toit | D32: 13.70 € | E32: =Igapäevane[[#This Row],[Aastane]]/12 -> 416.71 € | F32: =Igapäevane[[#This Row],[Igapäevane]]*365 -> 5,000.50 €
B33: Kulud | C33: Riided | D33: 3.29 € | E33: =Igapäevane[[#This Row],[Aastane]]/12 -> 100.07 € | F33: =Igapäevane[[#This Row],[Igapäevane]]*365 -> 1,200.85 €
B34: Kulud | C34: Ravikulud | D34: 1.64 € | E34: =Igapäevane[[#This Row],[Aastane]]/12 -> 49.88 € | F34: =Igapäevane[[#This Row],[Igapäevane]]*365 -> 598.60 €
B35: Kulud | C35: Ühistransport | D35: 1.00 € | E35: =Igapäevane[[#This Row],[Aastane]]/12 -> 30.42 € | F35: =Igapäevane[[#This Row],[Igapäevane]]*365 -> 365.00 €
B36: Kulud | C36: Muu 2 | D36: 0.00 € | E36: =Igapäevane[[#This Row],[Aastane]]/12 -> 0.00 € | F36: =Igapäevane[[#This Row],[Igapäevane]]*365 -> 0.00 €
B37: Kulud | C37: Muu 3 | D37: 0.00 € | E37: =Igapäevane[[#This Row],[Aastane]]/12 -> 0.00 € | F37: =Igapäevane[[#This Row],[Igapäevane]]*365 -> 0.00 €
B38: Kulud | C38: Muu 4 | D38: 0.00 € | E38: =Igapäevane[[#This Row],[Aastane]]/12 -> 0.00 € | F38: =Igapäevane[[#This Row],[Igapäevane]]*365 -> 0.00 €
B39: Valikulised | C39: Einestamine | D39: 3.29 € | E39: =Igapäevane[[#This Row],[Aastane]]/12 -> 100.07 € | F39: =Igapäevane[[#This Row],[Igapäevane]]*365 -> 1,200.85 €
B40: Valikulised | C40: Kingitused | D40: 1.64 € | E40: =Igapäevane[[#This Row],[Aastane]]/12 -> 49.88 € | F40: =Igapäevane[[#This Row],[Igapäevane]]*365 -> 598.60 €
B41: Valikulised | C41: Reisimine | D41: 6.16 € | E41: =Igapäevane[[#This Row],[Aastane]]/12 -> 187.37 € | F41: =Igapäevane[[#This Row],[Igapäevane]]*365 -> 2,248.40 €
B42: Valikulised | C42: Meelelahutus | D42: 3.29 € | E42: =Igapäevane[[#This Row],[Aastane]]/12 -> 100.07 € | F42: =Igapäevane[[#This Row],[Igapäevane]]*365 -> 1,200.85 €
B43: Valikulised | C43: Isiklik hooldus | D43: 0.82 € | E43: =Igapäevane[[#This Row],[Aastane]]/12 -> 24.94 € | F43: =Igapäevane[[#This Row],[Igapäevane]]*365 -> 299.30 €
B44: Valikulised | C44: Ostud | D44: 5.48 € | E44: =Igapäevane[[#This Row],[Aastane]]/12 -> 166.68 € | F44: =Igapäevane[[#This Row],[Igapäevane]]*365 -> 2,000.20 €
B45: Valikulised | C45: Heategevus | D45: 1.64 € | E45: =Igapäevane[[#This Row],[Aastane]]/12 -> 49.88 € | F45: =Igapäevane[[#This Row],[Igapäevane]]*365 -> 598.60 €
B46: Valikulised | C46: Klubid/liikmesused | D46: 0.82 € | E46: =Igapäevane[[#This Row],[Aastane]]/12 -> 24.94 € | F46: =Igapäevane[[#This Row],[Igapäevane]]*365 -> 299.30 €
B47: Valikulised | C47: Koduremont | D47: 13.15 € | E47: =Igapäevane[[#This Row],[Aastane]]/12 -> 399.98 € | F47: =Igapäevane[[#This Row],[Igapäevane]]*365 -> 4,799.75 €
B48: Valikulised | C48: Muu 1 | D48: 0.00 € | E48: =Igapäevane[[#This Row],[Aastane]]/12 -> 0.00 € | F48: =Igapäevane[[#This Row],[Igapäevane]]*365 -> 0.00 €
B49: Valikulised | C49: Muu 2 | D49: 0.00 € | E49: =Igapäevane[[#This Row],[Aastane]]/12 -> 0.00 € | F49: =Igapäevane[[#This Row],[Igapäevane]]*365 -> 0.00 €
B50: Säästud | C50: Reservid | D50: 13.70 € | E50: =Igapäevane[[#This Row],[Aastane]]/12 -> 416.71 € | F50: =Igapäevane[[#This Row],[Igapäevane]]*365 -> 5,000.50 €
B51: Säästud | C51: 401(k)/jne | D51: 32.88 € | E51: =Igapäevane[[#This Row],[Aastane]]/12 -> 1,000.10 € | F51: =Igapäevane[[#This Row],[Igapäevane]]*365 -> 12,001.20 €
B52: Säästud | C52: Säästukonto | D52: 16.44 € | E52: =Igapäevane[[#This Row],[Aastane]]/12 -> 500.05 € | F52: =Igapäevane[[#This Row],[Igapäevane]]*365 -> 6,000.60 €
B53: Säästud | C53: Muu 1 | D53: 0.00 € | E53: =Igapäevane[[#This Row],[Aastane]]/12 -> 0.00 € | F53: =Igapäevane[[#This Row],[Igapäevane]]*365 -> 0.00 €
B54: Säästud | C54: Muu 2 | D54: 0.00 € | E54: =Igapäevane[[#This Row],[Aastane]]/12 -> 0.00 € | F54: =Igapäevane[[#This Row],[Igapäevane]]*365 -> 0.00 €
B55: Kokku | D55: =SUMIF(Igapäevane[Tüüp],"Sissetulekud",Igapäevane[Igapäevane])-SUMIF(Igapäevane[Tüüp],"<>Sissetulek",Igapäevane[Igapäevane]) -> -235.37 € | E55: =SUMIF(Igapäevane[Tüüp],"Sissetulekud",Igapäevane[Igakuine])-SUMIF(Igapäevane[Tüüp],"<>Sissetulek",Igapäevane[Igakuine]) -> -7,159.17 € | F55: =SUMIF(Igapäevane[Tüüp],"Sissetulekud",Igapäevane[Aastane])-SUMIF(Igapäevane[Tüüp],"<>Sissetulek",Igapäevane[Aastane]) -> -85,910.05 €

Sheet Kuu rahavoog
B1: ISIKLIK RAHAVOOG
C2: Kuu rahavoog kokku: | D2: =KuuRahavoogTänaseni -> 18,380.00 € | F2: MÄRKUS. Hinnake igapäevaste üksuste kuuväärtust ja paigutage need sobivasse kuuveergu.
B4: Liik | C4: Kirjeldus | D4: Jaan | E4: Veebr | F4: Märts | G4: Apr | H4: Mai | I4: Juuni | J4: Juuli | K4: Aug | L4: Sept | M4: Okt | N4: Nov | O4: Dets | P4: Kokku
B5: Sissetulek | C5: Palk | D5: 7,500.00 € | E5: 7,500.00 € | F5: 7,500.00 € | G5: 7,500.00 € | H5: 7,500.00 € | I5: 7,500.00 € | P5: =SUM(Igakuine[[#This Row],[Jaan]:[Dets]]) -> 45,000.00 €
B6: Sissetulek | C6: Komisjonitasud/boonus | D6: 400.00 € | E6: 400.00 € | F6: 500.00 € | G6: 200.00 € | H6: 0.00 € | I6: 600.00 € | P6: =SUM(Igakuine[[#This Row],[Jaan]:[Dets]]) -> 2,100.00 €
B7: Sissetulek | C7: Muu 1 | D7: 2,500.00 € | E7: 2,500.00 € | F7: 2,500.00 € | G7: 2,500.00 € | H7: 2,500.00 € | I7: 2,500.00 € | P7: =SUM(Igakuine[[#This Row],[Jaan]:[Dets]]) -> 15,000.00 €
B8: Sissetulek | C8: Muu 2 | D8: 0.00 € | E8: 0.00 € | F8: 0.00 € | G8: 0.00 € | H8: 0.00 € | I8: 0.00 € | P8: =SUM(Igakuine[[#This Row],[Jaan]:[Dets]]) -> 0.00 €
B9: Sissetulek | C9: Muu 3 | D9: 0.00 € | E9: 0.00 € | F9: 0.00 € | G9: 0.00 € | H9: 0.00 € | I9: 0.00 € | P9: =SUM(Igakuine[[#This Row],[Jaan]:[Dets]]) -> 0.00 €
B10: Sissetulek | C10: Muu 4 | D10: 0.00 € | E10: 0.00 € | F10: 0.00 € | G10: 0.00 € | H10: 0.00 € | I10: 0.00 € | P10: =SUM(Igakuine[[#This Row],[Jaan]:[Dets]]) -> 0.00 €
B11: Kulud | C11: Sotsiaalmaksud | D11: 1,250.00 € | E11: 1,250.00 € | F11: 1,250.00 € | G11: 1,250.00 € | H11: 1,250.00 € | I11: 1,250.00 € | P11: =SUM(Igakuine[[#This Row],[Jaan]:[Dets]]) -> 7,500.00 €
B12: Kulud | C12: Tulumaks | D12: 208.33 € | E12: 208.33 € | F12: 208.33 € | G12: 208.33 € | H12: 208.33 € | I12: 208.33 € | P12: =SUM(Igakuine[[#This Row],[Jaan]:[Dets]]) -> 1,250.00 €
B13: Kulud | C13: Sõidukitasud | D13: 16.67 € | E13: 16.67 € | F13: 16.67 € | G13: 16.67 € | H13: 16.67 € | I13: 16.67 € | P13: =SUM(Igakuine[[#This Row],[Jaan]:[Dets]]) -> 100.00 €
B14: Kulud | C14: Sõidukimaksed | D14: 333.33 € | E14: 333.33 € | F14: 333.33 € | G14: 333.33 € | H14: 333.33 € | I14: 333.33 € | P14: =SUM(Igakuine[[#This Row],[Jaan]:[Dets]]) -> 2,000.00 €
B15: Kulud | C15: Hüpoteek/üür | D15: 1,250.00 € | E15: 1,250.00 € | F15: 1,250.00 € | G15: 1,250.00 € | H15: 1,250.00 € | I15: 1,250.00 € | P15: =SUM(Igakuine[[#This Row],[Jaan]:[Dets]]) -> 7,500.00 €
B16: Kulud | C16: Kindlustus | D16: 25.00 € | E16: 25.00 € | F16: 25.00 € | G16: 25.00 € | H16: 25.00 € | I16: 25.00 € | P16: =SUM(Igakuine[[#This Row],[Jaan]:[Dets]]) -> 150.00 €
B17: Kulud | C17: Elekter | D17: 100.00 € | E17: 100.00 € | F17: 100.00 € | G17: 100.00 € | H17: 100.00 € | I17: 100.00 € | P17: =SUM(Igakuine[[#This Row],[Jaan]:[Dets]]) -> 600.00 €
B18: Kulud | C18: Gaas | D18: 50.00 € | E18: 50.00 € | F18: 50.00 € | G18: 50.00 € | H18: 50.00 € | I18: 50.00 € | P18: =SUM(Igakuine[[#This Row],[Jaan]:[Dets]]) -> 300.00 €
B19: Kulud | C19: Vesi | D19: 50.00 € | E19: 50.00 € | F19: 50.00 € | G19: 50.00 € | H19: 50.00 € | I19: 50.00 € | P19: =SUM(Igakuine[[#This Row],[Jaan]:[Dets]]) -> 300.00 €
B20: Kulud | C20: Kanalisatsioon | D20: 25.00 € | E20: 25.00 € | F20: 25.00 € | G20: 25.00 € | H20: 25.00 € | I20: 25.00 € | P20: =SUM(Igakuine[[#This Row],[Jaan]:[Dets]]) -> 150.00 €
B21: Kulud | C21: Prügivedu | D21: 12.50 € | E21: 12.50 € | F21: 12.50 € | G21: 12.50 € | H21: 12.50 € | I21: 12.50 € | P21: =SUM(Igakuine[[#This Row],[Jaan]:[Dets]]) -> 75.00 €
B22: Kulud | C22: Telefon | D22: 50.00 € | E22: 50.00 € | F22: 50.00 € | G22: 50.00 € | H22: 50.00 € | I22: 50.00 € | P22: =SUM(Igakuine[[#This Row],[Jaan]:[Dets]]) -> 300.00 €
B23: Kulud | C23: Internet | D23: 50.00 € | E23: 50.00 € | F23: 50.00 € | G23: 50.00 € | H23: 50.00 € | I23: 50.00 € | P23: =SUM(Igakuine[[#This Row],[Jaan]:[Dets]]) -> 300.00 €
B24: Kulud | C24: Tervisekahjustuse kindlustus | D24: 125.00 € | E24: 125.00 € | F24: 125.00 € | G24: 125.00 € | H24: 125.00 € | I24: 125.00 € | P24: =SUM(Igakuine[[#This Row],[Jaan]:[Dets]]) -> 750.00 €
B25: Kulud | C25: Toit | D25: 400.00 € | E25: 500.00 € | F25: 450.00 € | G25: 400.00 € | H25: 450.00 € | I25: 425.00 € | P25: =SUM(Igakuine[[#This Row],[Jaan]:[Dets]]) -> 2,625.00 €
B26: Kulud | C26: Riided | D26: 50.00 € | E26: 75.00 € | F26: 100.00 € | G26: 75.00 € | H26: 125.00 € | I26: 75.00 € | P26: =SUM(Igakuine[[#This Row],[Jaan]:[Dets]]) -> 500.00 €
B27: Kulud | C27: Ravikulud | D27: 50.00 € | E27: 10.00 € | F27: 25.00 € | G27: 25.00 € | H27: 20.00 € | I27: 70.00 € | P27: =SUM(Igakuine[[#This Row],[Jaan]:[Dets]]) -> 200.00 €
B28: Kulud | C28: Ühistransport | D28: 30.00 € | E28: 30.00 € | F28: 30.00 € | G28: 20.00 € | H28: 30.00 € | I28: 30.00 € | P28: =SUM(Igakuine[[#This Row],[Jaan]:[Dets]]) -> 170.00 €
B29: Kulud | C29: Muu 2 | D29: 0.00 € | E29: 0.00 € | F29: 0.00 € | G29: 0.00 € | H29: 0.00 € | I29: 0.00 € | P29: =SUM(Igakuine[[#This Row],[Jaan]:[Dets]]) -> 0.00 €
B30: Kulud | C30: Muu 3 | D30: 0.00 € | E30: 0.00 € | F30: 0.00 € | G30: 0.00 € | H30: 0.00 € | I30: 0.00 € | P30: =SUM(Igakuine[[#This Row],[Jaan]:[Dets]]) -> 0.00 €
B31: Kulud | C31: Muu 4 | D31: 0.00 € | E31: 0.00 € | F31: 0.00 € | G31: 0.00 € | H31: 0.00 € | I31: 0.00 € | P31: =SUM(Igakuine[[#This Row],[Jaan]:[Dets]]) -> 0.00 €
B32: Valikulised | C32: Einestamine | D32: 50.00 € | E32: 150.00 € | F32: 100.00 € | G32: 50.00 € | H32: 150.00 € | I32: 100.00 € | P32: =SUM(Igakuine[[#This Row],[Jaan]:[Dets]]) -> 600.00 €
B33: Valikulised | C33: Kingitused | D33: 25.00 € | E33: 75.00 € | F33: 50.00 € | G33: 25.00 € | H33: 75.00 € | I33: 50.00 € | P33: =SUM(Igakuine[[#This Row],[Jaan]:[Dets]]) -> 300.00 €
B34: Valikulised | C34: Reisimine | D34: 0.00 € | E34: 0.00 € | F34: 1,000.00 € | G34: 0.00 € | H34: 0.00 € | I34: 1,000.00 € | P34: =SUM(Igakuine[[#This Row],[Jaan]:[Dets]]) -> 2,000.00 €
B35: Valikulised | C35: Meelelahutus | D35: 50.00 € | E35: 150.00 € | F35: 100.00 € | G35: 50.00 € | H35: 150.00 € | I35: 100.00 € | P35: =SUM(Igakuine[[#This Row],[Jaan]:[Dets]]) -> 600.00 €
B36: Valikulised | C36: Isiklik hooldus | D36: 15.00 € | E36: 25.00 € | F36: 35.00 € | G36: 15.00 € | H36: 25.00 € | I36: 35.00 € | P36: =SUM(Igakuine[[#This Row],[Jaan]:[Dets]]) -> 150.00 €
B37: Valikulised | C37: Ostud | D37: 100.00 € | E37: 200.00 € | F37: 150.00 € | G37: 175.00 € | H37: 150.00 € | I37: 175.00 € | P37: =SUM(Igakuine[[#This Row],[Jaan]:[Dets]]) -> 950.00 €
B38: Valikulised | C38: Heategevus | D38: 50.00 € | E38: 50.00 € | F38: 50.00 € | G38: 50.00 € | H38: 50.00 € | I38: 50.00 € | P38: =SUM(Igakuine[[#This Row],[Jaan]:[Dets]]) -> 300.00 €
B39: Valikulised | C39: Klubid/liikmesused | D39: 25.00 € | E39: 25.00 € | F39: 25.00 € | G39: 25.00 € | H39: 25.00 € | I39: 25.00 € | P39: =SUM(Igakuine[[#This Row],[Jaan]:[Dets]]) -> 150.00 €
B40: Valikulised | C40: Koduremont | D40: 400.00 € | E40: 400.00 € | F40: 400.00 € | G40: 400.00 € | H40: 400.00 € | I40: 400.00 € | P40: =SUM(Igakuine[[#This Row],[Jaan]:[Dets]]) -> 2,400.00 €
B41: Valikulised | C41: Muu 1 | D41: 0.00 € | E41: 0.00 € | F41: 0.00 € | G41: 0.00 € | H41: 0.00 € | I41: 0.00 € | P41: =SUM(Igakuine[[#This Row],[Jaan]:[Dets]]) -> 0.00 €
B42: Valikulised | C42: Muu 2 | D42: 0.00 € | E42: 0.00 € | F42: 0.00 € | G42: 0.00 € | H42: 0.00 € | I42: 0.00 € | P42: =SUM(Igakuine[[#This Row],[Jaan]:[Dets]]) -> 0.00 €
B43: Säästud | C43: Reservid | D43: 416.67 € | E43: 416.67 € | F43: 416.67 € | G43: 416.67 € | H43: 416.67 € | I43: 416.67 € | P43: =SUM(Igakuine[[#This Row],[Jaan]:[Dets]]) -> 2,500.00 €
B44: Säästud | C44: 401(k)/jne | D44: 1,000.00 € | E44: 1,000.00 € | F44: 1,000.00 € | G44: 1,000.00 € | H44: 1,000.00 € | I44: 1,000.00 € | P44: =SUM(Igakuine[[#This Row],[Jaan]:[Dets]]) -> 6,000.00 €
B45: Säästud | C45: Säästukonto | D45: 500.00 € | E45: 500.00 € | F45: 500.00 € | G45: 500.00 € | H45: 500.00 € | I45: 500.00 € | P45: =SUM(Igakuine[[#This Row],[Jaan]:[Dets]]) -> 3,000.00 €
B46: Säästud | C46: Muu 1 | D46: 0.00 € | E46: 0.00 € | F46: 0.00 € | G46: 0.00 € | H46: 0.00 € | I46: 0.00 € | P46: =SUM(Igakuine[[#This Row],[Jaan]:[Dets]]) -> 0.00 €
B47: Säästud | C47: Muu 2 | D47: 0.00 € | E47: 0.00 € | F47: 0.00 € | G47: 0.00 € | H47: 0.00 € | I47: 0.00 € | P47: =SUM(Igakuine[[#This Row],[Jaan]:[Dets]]) -> 0.00 €
B48: Kokku | D48: =SUMIF(Igakuine[Liik],"Sissetulek",Igakuine[Jaan])-SUMIF(Igakuine[Liik],"<>Sissetulek",Igakuine[Jaan]) -> 3,692.50 € | E48: =SUMIF(Igakuine[Liik],"Sissetulek",Igakuine[Veebr])-SUMIF(Igakuine[Liik],"<>Sissetulek",Igakuine[Veebr]) -> 3,247.50 € | F48: =SUMIF(Igakuine[Liik],"Sissetulek",Igakuine[Märts])-SUMIF(Igakuine[Liik],"<>Sissetulek",Igakuine[Märts]) -> 2,522.50 € | G48: =SUMIF(Igakuine[Liik],"Sissetulek",Igakuine[Apr])-SUMIF(Igakuine[Liik],"<>Sissetulek",Igakuine[Apr]) -> 3,427.50 € | H48: =SUMIF(Igakuine[Liik],"Sissetulek",Igakuine[Mai])-SUMIF(Igakuine[Liik],"<>Sissetulek",Igakuine[Mai]) -> 2,887.50 € | I48: =SUMIF(Igakuine[Liik],"Sissetulek",Igakuine[Juuni])-SUMIF(Igakuine[Liik],"<>Sissetulek",Igakuine[Juuni]) -> 2,602.50 € | J48: =SUMIF(Igakuine[Liik],"Sissetulek",Igakuine[Juuli])-SUMIF(Igakuine[Liik],"<>Sissetulek",Igakuine[Juuli]) -> 0.00 € | K48: =SUMIF(Igakuine[Liik],"Sissetulek",Igakuine[Aug])-SUMIF(Igakuine[Liik],"<>Sissetulek",Igakuine[Aug]) -> 0.00 € | L48: =SUMIF(Igakuine[Liik],"Sissetulek",Igakuine[Sept])-SUMIF(Igakuine[Liik],"<>Sissetulek",Igakuine[Sept]) -> 0.00 € | M48: =SUMIF(Igakuine[Liik],"Sissetulek",Igakuine[Okt])-SUMIF(Igakuine[Liik],"<>Sissetulek",Igakuine[Okt]) -> 0.00 € | N48: =SUMIF(Igakuine[Liik],"Sissetulek",Igakuine[Nov])-SUMIF(Igakuine[Liik],"<>Sissetulek",Igakuine[Nov]) -> 0.00 € | O48: =SUMIF(Igakuine[Liik],"Sissetulek",Igakuine[Dets])-SUMIF(Igakuine[Liik],"<>Sissetulek",Igakuine[Dets]) -> 0.00 € | P48: =SUMIF(Igakuine[Liik],"Sissetulek",Igakuine[Kokku])-SUMIF(Igakuine[Liik],"<>Sissetulek",Igakuine[Kokku]) -> 18,380.00 €

Sheet Aasta rahavoog
B1: ISIKLIK RAHAVOOG
C2: Rahavoog tänaseni kokku: | D2: =AastaRahavoogTänaseni -> 42,250.00 € | G2: See on aastaprognoos. Selle töölehe abil saate vaadata aastasummasid ja prognoositavaid kuuväärtusi. Kasutage üksuste sisestamiseks töölehti Sissetulekud, Kulud, Valikulised kulud ja Säästud.
B4: SISSETULEKUTE KOKKUVÕTE | F4: KULUDE KOKKUVÕTE | J4: VALIKULISTE KULUDE KOKKUVÕTE | N4: SÄÄSTUDE KOKKUVÕTE
B5: Aasta kogusumma: | C5: =Sissetulek!C11 -> 125,000.00 € | F5: Aasta kogusumma: | G5: =Kulud[[#Totals],[Aastane ]] -> 46,500.00 € | J5: Aasta kogusumma: | K5: =Valikulised_[[#Totals],[Aastane ]] -> 13,250.00 € | N5: Aasta kogusumma: | O5: =Säästud[[#Totals],[Aastane ]] -> 23,000.00 €
B8: Kuu kogusumma: | C8: =Sissetulek!D11 -> 10,416.67 € | F8: Kuu kogusumma: | G8: =Kulud[[#Totals],[Igakuine ]] -> 3,875.00 € | J8: Kuu kogusumma: | K8: =Valikulised_[[#Totals],[Igakuine ]] -> 1,104.17 € | N8: Kuu kogusumma: | O8: =Säästud!D10 -> 1,916.67 €
R10: Reasildid | S10: Aasta sissetulek | U10: Reasildid | V10: Aastasumma | X10: Reasildid | Y10: Aastasumma | AA10: Reasildid | AB10: Aastasumma

Sheet Sissetulek
B1: ISIKLIK RAHAVOOG
C2: Rahavoog tänaseni kokku: | D2: =AastaRahavoogTänaseni -> 42,250.00 € | F2: See on aastaprognoos. Selle töölehe abil saate vaadata aastasummasid ja prognoositavaid kuuväärtusi. Kui soovite tabelitesse lisada igapäevaseid üksusi, hinnake nende aastaväärtust ja paigutage need sobivasse aastaveergu.
B4: Sissetulek | C4: Aastane | D4: Igakuine
B5: Palk | C5: 90,000.00 € | D5: =Sissetulek[[#This Row],[Aastane ]]/12 -> 7,500.00 €
B6: Komisjonitasud/boonus | C6: 5,000.00 € | D6: =Sissetulek[[#This Row],[Aastane ]]/12 -> 416.67 €
B7: Muu 1 | C7: 30,000.00 € | D7: =Sissetulek[[#This Row],[Aastane ]]/12 -> 2,500.00 €
B8: Muu 2 | C8: 0.00 € | D8: =Sissetulek[[#This Row],[Aastane ]]/12 -> 0.00 €
B9: Muu 3 | C9: 0.00 € | D9: =Sissetulek[[#This Row],[Aastane ]]/12 -> 0.00 €
B10: Muu 4 | C10: 0.00 € | D10: =Sissetulek[[#This Row],[Aastane ]]/12 -> 0.00 €
B11: Kokku | C11: =SUBTOTAL(109,Sissetulek[[Aastane ]]) -> 125,000.00 € | D11: =SUBTOTAL(109,Sissetulek[[Igakuine ]]) -> 10,416.67 €

Sheet Kulud
B1: ISIKLIK RAHAVOOG
C2: Rahavoog tänaseni kokku: | D2: =AastaRahavoogTänaseni -> 42,250.00 € | F2: See on aastaprognoos. Selle töölehe abil saate vaadata aastasummasid ja prognoositavaid kuuväärtusi. Kui soovite tabelitesse lisada igapäevaseid üksusi, hinnake nende aastaväärtust ja paigutage need sobivasse aastaveergu.
B4: Kulud | C4: Aastane | D4: Igakuine
B5: Sotsiaalmaksud | C5: 12,500.00 € | D5: =Kulud[[#This Row],[Aastane ]]/12 -> 1,041.67 €
B6: Tulumaks | C6: 2,500.00 € | D6: =Kulud[[#This Row],[Aastane ]]/12 -> 208.33 €
B7: Sõidukitasud | C7: 200.00 € | D7: =Kulud[[#This Row],[Aastane ]]/12 -> 16.67 €
B8: Sõidukimaksed | C8: 4,000.00 € | D8: =Kulud[[#This Row],[Aastane ]]/12 -> 333.33 €
B9: Hüpoteek/üür | C9: 15,000.00 € | D9: =Kulud[[#This Row],[Aastane ]]/12 -> 1,250.00 €
B10: Kindlustus | C10: 250.00 € | D10: =Kulud[[#This Row],[Aastane ]]/12 -> 20.83 €
B11: Elekter | C11: 1,200.00 € | D11: =Kulud[[#This Row],[Aastane ]]/12 -> 100.00 €
B12: Gaas | C12: 600.00 € | D12: =Kulud[[#This Row],[Aastane ]]/12 -> 50.00 €
B13: Vesi/kanalisatsioon | C13: 600.00 € | D13: =Kulud[[#This Row],[Aastane ]]/12 -> 50.00 €
B14: Prügivedu | C14: 150.00 € | D14: =Kulud[[#This Row],[Aastane ]]/12 -> 12.50 €
B15: Telefon | C15: 600.00 € | D15: =Kulud[[#This Row],[Aastane ]]/12 -> 50.00 €
B16: Internet | C16: 600.00 € | D16: =Kulud[[#This Row],[Aastane ]]/12 -> 50.00 €
B17: Tervisekahjustuse kindlustus | C17: 1,500.00 € | D17: =Kulud[[#This Row],[Aastane ]]/12 -> 125.00 €
B18: Toit | C18: 5,000.00 € | D18: =Kulud[[#This Row],[Aastane ]]/12 -> 416.67 €
B19: Riided | C19: 1,200.00 € | D19: =Kulud[[#This Row],[Aastane ]]/12 -> 100.00 €
B20: Ravikulud | C20: 600.00 € | D20: =Kulud[[#This Row],[Aastane ]]/12 -> 50.00 €
B21: Muu 1 | C21: 0.00 € | D21: =Kulud[[#This Row],[Aastane ]]/12 -> 0.00 €
B22: Muu 2 | C22: 0.00 € | D22: =Kulud[[#This Row],[Aastane ]]/12 -> 0.00 €
B23: Kokku | C23: =SUBTOTAL(109,Kulud[[Aastane ]]) -> 46,500.00 € | D23: =SUBTOTAL(109,Kulud[[Igakuine ]]) -> 3,875.00 €

Sheet Valikulised
B1: ISIKLIK RAHAVOOG
C2: Rahavoog tänaseni kokku: | D2: =AastaRahavoogTänaseni -> 42,250.00 € | F2: See on aastaprognoos. Selle töölehe abil saate vaadata aastasummasid ja prognoositavaid kuuväärtusi. Kui soovite tabelitesse lisada igapäevaseid üksusi, hinnake nende aastaväärtust ja paigutage need sobivasse aastaveergu.
B4: Valikulised | C4: Aastane | D4: Igakuine
B5: Einestamine | C5: 1,200.00 € | D5: =Valikulised_[[#This Row],[Aastane ]]/12 -> 100.00 €
B6: Kingitused | C6: 600.00 € | D6: =Valikulised_[[#This Row],[Aastane ]]/12 -> 50.00 €
B7: Reisimine | C7: 2,250.00 € | D7: =Valikulised_[[#This Row],[Aastane ]]/12 -> 187.50 €
B8: Meelelahutus | C8: 1,200.00 € | D8: =Valikulised_[[#This Row],[Aastane ]]/12 -> 100.00 €
B9: Isiklik hooldus | C9: 300.00 € | D9: =Valikulised_[[#This Row],[Aastane ]]/12 -> 25.00 €
B10: Ostud | C10: 2,000.00 € | D10: =Valikulised_[[#This Row],[Aastane ]]/12 -> 166.67 €
B11: Heategevus | C11: 600.00 € | D11: =Valikulised_[[#This Row],[Aastane ]]/12 -> 50.00 €
B12: Klubid/liikmesused | C12: 300.00 € | D12: =Valikulised_[[#This Row],[Aastane ]]/12 -> 25.00 €
B13: Koduremont | C13: 4,800.00 € | D13: =Valikulised_[[#This Row],[Aastane ]]/12 -> 400.00 €
B14: Muu 1 | C14: 0.00 € | D14: =Valikulised_[[#This Row],[Aastane ]]/12 -> 0.00 €
B15: Muu 2 | C15: 0.00 € | D15: =Valikulised_[[#This Row],[Aastane ]]/12 -> 0.00 €
B16: Kokku | C16: =SUBTOTAL(109,Valikulised_[[Aastane ]]) -> 13,250.00 € | D16: =SUBTOTAL(109,Valikulised_[[Igakuine ]]) -> 1,104.17 €

Sheet Säästud
B1: ISIKLIK RAHAVOOG
C2: Rahavoog tänaseni kokku: | D2: =AastaRahavoogTänaseni -> 42,250.00 € | F2: See on aastaprognoos. Selle töölehe abil saate vaadata aastasummasid ja prognoositavaid kuuväärtusi. Kui soovite tabelitesse lisada igapäevaseid üksusi, hinnake nende aastaväärtust ja paigutage need sobivasse aastaveergu.
B4: Säästud | C4: Aastane | D4: Igakuine
B5: Reservid | C5: 5,000.00 € | D5: =Säästud[[#This Row],[Aastane ]]/12 -> 416.67 €
B6: Pension jne | C6: 12,000.00 € | D6: =Säästud[[#This Row],[Aastane ]]/12 -> 1,000.00 €
B7: Säästud/investeeringud | C7: 6,000.00 € | D7: =Säästud[[#This Row],[Aastane ]]/12 -> 500.00 €
B8: Muu 1 | C8: 0.00 € | D8: =Säästud[[#This Row],[Aastane ]]/12 -> 0.00 €
B9: Muu 2 | C9: 0.00 € | D9: =Säästud[[#This Row],[Aastane ]]/12 -> 0.00 €
B10: Kokku | C10: =SUBTOTAL(109,Säästud[[Aastane ]]) -> 23,000.00 € | D10: =SUBTOTAL(109,Säästud[[Igakuine ]]) -> 1,916.67 €
